Cogmind - Beta 14 @@@ ROGUE MODE // 2024.11.08 @ 09:30:45 Player: Shimmyarah Result: Self-destructed Performance ------------- Evolutions (4) 2000 Regions Visited (7) 1400 Robots Destroyed (49) 245 Value Destroyed (950) 950 Prototype IDs (0) 0 Alien Tech Used (0) 0 Bonus (500) 500 TOTAL SCORE: 5095 Bonus ------- Entered DSFs 500 Cogmind --------- Core Integrity 333/850 Matter 6/300 Energy 0/100 System Corruption 0% Temperature Cool (0) Movement Core (200) Ox3 Location -6/Factory Parts ------- > --- POWER (2) -------- (None) > --- PROPULSION (4) --- (None) > --- UTILITY (6) ------ Advanced Sensor Array Improved Signal Interpreter Particle Charger Weapon Cycler System Shield > --- WEAPON (3) ------- Flak Cannon > --- INVENTORY (5) ---- Mining Laser Peak State ------------ > --- POWER ------------ Nuclear Core Nuclear Core > --- PROPULSION ------- Armored Huge Wheel Armored Huge Wheel > --- UTILITY ---------- Small Storage Unit Improved Signal Interpreter Medium Armor Plating System Shield > --- WEAPON ----------- Gauss Rifle Gauss Rifle Gauss Rifle > --- INVENTORY -------- Ion Engine Kinecellerator Weapon Cycler Flak Cannon Grenade Launcher Grenade Launcher Grenade Launcher Mining Laser [Rating: 44] Favorites ----------- Power Ion Engine Engine Ion Engine Power Core Nuclear Core Propulsion Light Treads Treads Light Treads Wheel Armored Huge Wheel Utility Small Storage Unit Device Seismic Detector Storage Small Storage Unit Processor Improved Signal Interpreter Hackware System Shield Protection Medium Armor Plating Weapon Gauss Rifle Energy Gun Beam Rifle Ballistic Gun Gauss Rifle Ballistic Cannon Flak Cannon Launcher Grenade Launcher Build | -11 -10 -10 -9 -8 -7 -7 -6 ------- Run | Yrd Mat Min Mat Mat Fac DSF Fac Slots Evolved 8 | . . . 2 2 2 . 2 Power 1 | . . . . . 1 . . Propulsion 2 | . . . 2 . . . . Utility 4 | . . . . 1 1 . 2 Weapon 1 | . . . . 1 . . . Parts Attached 57 | 8 1 . 14 16 4 5 9 Power 8 | 1 . . 2 2 . 2 1 Engine 5 | 1 . . 2 2 . . . Core 3 | . . . . . . 2 1 Reactor . | . . . . . . . . Propulsion 11 | 2 . . 6 3 . . . Treads 9 | 2 . . 6 1 . . . Leg . | . . . . . . . . Wheel 2 | . . . . 2 . . . Hover . | . . . . . . . . Flight . | . . . . . . . . Utility 18 | 3 1 . 4 3 3 . 4 Device 10 | 3 . . 1 2 . . 4 Storage 1 | . 1 . . . . . . Processor 2 | . . . . 1 1 . . Hackware 1 | . . . . . 1 . . Protection 4 | . . . 3 . 1 . . Artifact . | . . . . . . . . Weapon 20 | 2 . . 2 8 1 3 4 Energy Gun 2 | . . . 1 1 . . . Energy Cannon . | . . . . . . . . Ballistic Gun 13 | 2 . . 1 6 1 . 3 Ballistic Cannon 1 | . . . . . . . 1 Launcher 4 | . . . . 1 . 3 . Special Weapon . | . . . . . . . . Impact Weapon . | . . . . . . . . Slashing Weapon . | . . . . . . . . Piercing Weapon . | . . . . . . . . Special Melee Weapon . | . . . . . . . . Unidentified Prototypes . | . . . . . . . . Parts Lost 17 | . . . . 3 . 8 6 Power 4 | . . . . 1 . 2 1 Propulsion 2 | . . . . . . 2 . Utility 4 | . . . . 1 . 1 2 Weapon 7 | . . . . 1 . 3 3 Highest Loss Streak 6 | . . . . 2 . 5 6 To Critical Strikes . | . . . . . . . . Average Slot Usage (%) 82 | . 100 100 99 91 68 68 46 Engine 7 | . 14 14 11 8 7 1 . Core 2 | . . . . . . 10 5 Treads 21 | . 28 28 43 22 . . . Wheel 3 | . . . . 6 15 8 . Device 7 | . 15 14 7 9 . . 5 Storage 8 | . 12 14 11 9 7 7 4 Processor 4 | . . . . 8 1 7 6 Hackware 2 | . . . . . 6 7 6 Protection 2 | . . . 3 . 7 6 . Energy Gun 3 | . . . 8 5 . . . Ballistic Gun 16 | . 28 28 13 18 22 5 16 Launcher 1 | . . . . 2 . 11 . Peak Build Rating 44 | 9 9 8 13 37 38 44 27 Average Rating 18 | 7 8 8 11 24 35 29 23 On Entrance 14 | . 9 8 8 13 30 38 9 Naked Turns . | . . . . . . . . Heaviest Build 38 | 11 15 15 23 25 29 38 28 Greatest Support 80 | 40 40 40 80 80 28 28 3 Greatest Overweight (x) 9 | . . . . 8 1 3 9 Average Overweight (x) . | . . . . . 1 . 3 Largest Inventory Capacity 8 | 5 8 8 8 8 8 8 8 Average Capacity 7 | 5 7 8 8 8 8 8 7 Most Carried 8 | 5 8 8 8 8 7 8 7 Average Carried 6 | 3 6 8 7 7 4 7 3 Final Capacity 8 | 5 8 8 8 8 8 8 5 Final Carried 8 | 5 8 8 8 7 5 8 1 Class Distribution -------------------- 34% | Mutant 21% | Scavenger-Mutant 14% | Gunner 12% | Scavenger-Skirmisher 9% | Tank 7% | Skirmisher Dominant Class ---------------- Mutant | -10/Materials Mutant | -10/Mines Scavenger-Mutant | -9/Materials Scavenger-Skirmisher | -8/Materials Tank | -7/Factory Tank | -7/DSF Gunner | -6/Factory Resources | -11 -10 -10 -9 -8 -7 -7 -6 ----------- Run | Yrd Mat Min Mat Mat Fac DSF Fac Matter Collected 1150 | 364 . 41 462 119 . 164 . Remotely 85 | 85 . . . . . . . Salvage Created 1552 | 255 81 41 693 280 . 202 . Parts 113 | 19 8 3 53 19 . 11 . Haulers Intercepted . | . . . . . . . . Recyclers Shooed 1 | . . . 1 . . . . Parts Field Recycled . | . . . . . . . . Retrieved Matter . | . . . . . . . . Parts Self-Destructed . | . . . . . . . . Prevented . | . . . . . . . . Kills | -11 -10 -10 -9 -8 -7 -7 -6 ------- Run | Yrd Mat Min Mat Mat Fac DSF Fac Combat Hostiles Destroyed 33 | . 4 3 15 8 . 3 . Guns 29 | . 4 3 15 6 . 1 . AOE 4 | . . . . 2 . 2 . Classes Destroyed 10 | 3 2 . 3 . . 2 . Worker 3 | 2 . . 1 . . . . Builder 4 | . . . 4 . . . . Tunneler 7 | 6 . . 1 . . . . Recycler 2 | 1 . . 1 . . . . Swarmer 16 | . 3 3 7 3 . . . Cutter 2 | . . . . . . 2 . Grunt 9 | . 1 . 5 3 . . . Duelist 1 | . . . 1 . . . . Sentry 4 | . . . 2 2 . . . Specialist 1 | . . . . . . 1 . Best Kill Streak 10 | 3 3 3 10 3 . 2 . Combat Bots Only 3 | . 3 3 3 3 . 2 . Max Kills in Single Turn 2 | 2 1 1 2 1 . 1 . Gunslinging 1 | . . . 1 . . . . Exploded 1 | . . . . 1 . 1 . Melee . | . . . . . . . . Uniques/NPCs Destroyed . | . . . . . . . . Combat | -11 -10 -10 -9 -8 -7 -7 -6 -------- Run | Yrd Mat Min Mat Mat Fac DSF Fac Hostile Shots Fired 382 | . 20 33 91 69 . 79 90 Missed 120 | . 7 7 37 20 . 23 26 Damage Taken 3860 | . 127 206 612 819 . 1133 963 Core 905 | . 6 41 73 105 . 163 517 Absorbed by Shields 22 | . . . . . . 22 . Core Remaining (%) 83 | 100 . 81 81 80 . 76 . Volleys Fired 124 | 14 7 9 64 19 . 9 2 Largest 3 | 2 2 2 2 3 . 3 3 Hottest 102 | 40 40 40 79 102 . 90 84 Shots Fired 278 | 28 14 18 128 57 . 27 6 Gun 259 | 28 14 18 128 53 . 12 6 Cannon . | . . . . . . . . Launcher 19 | . . . . 4 . 15 . Special . | . . . . . . . . Kinetic 205 | 28 14 18 89 38 . 12 6 Thermal 54 | . . . 39 15 . . . Explosive 19 | . . . . 4 . 15 . Electromagnetic . | . . . . . . . . Robot Hit Streak 13 | 5 3 5 13 9 . 2 1 Robot Miss Streak 9 | 3 3 4 9 3 . 3 4 Penetration Max 1 | . . . . . . . 1 Secondary Targets 7 | . . 2 4 1 . . . Max Gunslinging Chain 1 | . . 1 1 1 . . . Shots Hit Robots 144 | 17 6 10 69 34 . 6 2 Core Hits 82 | 10 4 3 29 16 . 16 4 Critical Kills . | . . . . . . . . Critical Parts Destroyed . | . . . . . . . . Critical Strikes 2 | . . . 2 . . . . Burn 2 | . . . 2 . . . . Melee Attacks . | . . . . . . . . Impact . | . . . . . . . . Slashing . | . . . . . . . . Piercing . | . . . . . . . . Sneak Attacks . | . . . . . . . . Combat Hostiles . | . . . . . . . . Follow-up Attacks . | . . . . . . . . Damage Inflicted 2763 | 236 83 135 1007 636 . 588 78 Guns 2004 | 236 83 135 997 395 . 113 45 Cannons . | . . . . . . . . Explosions 664 | . . . . 215 . 449 . Melee . | . . . . . . . . Ramming 95 | . . . 10 26 . 26 33 Kinetic 1586 | 236 83 135 666 308 . 113 45 Thermal 418 | . . . 331 87 . . . Explosive 664 | . . . . 215 . 449 . Electromagnetic . | . . . . . . . . Impact . | . . . . . . . . Slashing . | . . . . . . . . Piercing . | . . . . . . . . Highest Corruption 3 | . . . . . . 3 . Average Corruption 2 | . . . . . . 2 . Corruption Purged . | . . . . . . . . Corruption Blocked . | . . . . . . . . Overload Shots . | . . . . . . . . Overflow Damage . | . . . . . . . . Projectiles . | . . . . . . . . Explosions . | . . . . . . . . Melee . | . . . . . . . . Knockbacks 2 | . . . . . . 2 . Impact 2 | . . . . . . 2 . Kinetic . | . . . . . . . . Secondary . | . . . . . . . . Self-Inflicted Damage 104 | . . . . 8 . 81 15 Shots 2 | . . . . . . 2 . Rammed 22 | . . . 2 5 . 5 10 Targets Rammed 22 | . . . 2 5 . 5 10 Kicked . | . . . . . . . . Crushed . | . . . . . . . . Highest Temperature 260 | . 7 . 260 166 . . . Average Temperature 73 | . 7 . 85 47 . . . Received Heat Transfer 660 | . 36 . 177 279 . 168 . Effects 1 | . . . 1 . . . . Energy Bleed 1 | . . . 1 . . . . Siege Activations . | . . . . . . . . Robots Corrupted . | . . . . . . . . Combat Hostiles . | . . . . . . . . Parts Fried . | . . . . . . . . Impact Corruptions . | . . . . . . . . Robots Melted . | . . . . . . . . Combat Hostiles . | . . . . . . . . Parts Melted 3 | . . . 2 1 . . . Heat Transferred 1221 | . . . 999 222 . . . Parts Sabotaged . | . . . . . . . . Parts Stolen . | . . . . . . . . Parts Stripped . | . . . . . . . . Power Chain Reactions . | . . . . . . . . Alert | -11 -10 -10 -9 -8 -7 -7 -6 ------- Run | Yrd Mat Min Mat Mat Fac DSF Fac Peak Influence 360 | 45 119 116 360 318 106 199 75 Initial 152 | . 29 46 44 152 106 74 75 Average 154 | 25 72 96 236 237 106 143 62 Maximum Alert Level 1 | . . . 1 1 . . . Low Security (%) 66 | 100 100 100 30 33 100 100 100 Level 1 33 | . . . 69 66 . . . Level 2 . | . . . . . . . . Level 3 . | . . . . . . . . Level 4 . | . . . . . . . . Level 5 . | . . . . . . . . High Security . | . . . . . . . . Max Security . | . . . . . . . . Squads Dispatched 6 | . . . 1 3 . 2 . Investigation 1 | . . . 1 . . . . Extermination . | . . . . . . . . Reinforcement 4 | . . . . 2 . 2 . Assault . | . . . . . . . . Garrison 1 | . . . . 1 . . . Intercept . | . . . . . . . . Searches Triggered . | . . . . . . . . Construction Impeded 1 | . . . . 1 . . . Haulers Reinforced . | . . . . . . . . Active Scanning Responses . | . . . . . . . . Cargo Convoy Interrupts . | . . . . . . . . Stealth | -11 -10 -10 -9 -8 -7 -7 -6 --------- Run | Yrd Mat Min Mat Mat Fac DSF Fac Distress Signals 2 | . . . 1 1 . . . Communications Jammed . | . . . . . . . . Distress Signals . | . . . . . . . . Times Spotted 63 | . 6 6 22 15 . 11 3 Peak Tracking Total 8 | . 4 3 5 8 . 4 3 Tactical Retreats 7 | . . . 4 . . 3 . Traps | -11 -10 -10 -9 -8 -7 -7 -6 ------- Run | Yrd Mat Min Mat Mat Fac DSF Fac Traps Triggered 3 | . . . 1 . . 2 . Indirectly . | . . . . . . . . Trap Hack Attempts . | . . . . . . . . Triggered . | . . . . . . . . Disarmed . | . . . . . . . . Reprogrammed . | . . . . . . . . Reused . | . . . . . . . . Traps Extracted . | . . . . . . . . Installed . | . . . . . . . . Triggered . | . . . . . . . . Machines | -11 -10 -10 -9 -8 -7 -7 -6 ---------- Run | Yrd Mat Min Mat Mat Fac DSF Fac Machines Disabled 3 | . . . . 2 . 1 . Max in Single Turn 1 | . . . . 1 . 1 . Machines Repaired . | . . . . . . . . Machines Dismantled . | . . . . . . . . Machines Sabotaged . | . . . . . . . . Overloaded Fab Kills . | . . . . . . . . Hacking | -11 -10 -10 -9 -8 -7 -7 -6 --------- Run | Yrd Mat Min Mat Mat Fac DSF Fac Machines Accessed 6 | . . . 2 3 1 . . Terminals 6 | . . . 2 3 1 . . Fabricators . | . . . . . . . . Repair Stations . | . . . . . . . . Recycling Units . | . . . . . . . . Scanalyzers . | . . . . . . . . Garrison Access . | . . . . . . . . Total Hacks 13 | . . . 4 7 2 . . Successful 5 | . . . 2 2 1 . . Failed 8 | . . . 2 5 1 . . Catastrophic 4 | . . . 2 2 . . . Database Lockouts . | . . . . . . . . Manual 9 | . . . 4 5 . . . Terminals 13 | . . . 4 7 2 . . Fabricators . | . . . . . . . . Repair Stations . | . . . . . . . . Recycling Units . | . . . . . . . . Scanalyzers . | . . . . . . . . Garrison Access . | . . . . . . . . Terminal Hacks 3 | . . . 1 1 1 . . Record 1 | . . . . 1 . . . Open DSF 1 | . . . . . 1 . . Level Access Points 1 | . . . 1 . . . . Fabricator Hacks . | . . . . . . . . Repair Station Hacks . | . . . . . . . . Recycling Unit Hacks . | . . . . . . . . Scanalyzer . | . . . . . . . . Garrison Access Hacks . | . . . . . . . . Unauthorized Hacks 2 | . . . 1 1 . . . Terminals 2 | . . . 1 1 . . . Operators 2 | . . . 1 1 . . . Fabricators . | . . . . . . . . Repair Stations . | . . . . . . . . Recycling Units . | . . . . . . . . Scanalyzers . | . . . . . . . . Garrison Access . | . . . . . . . . Data Cores Recovered . | . . . . . . . . Used . | . . . . . . . . Hacking Detections 4 | . . . 1 3 . . . Full Trace Events . | . . . . . . . . Feedback Events . | . . . . . . . . Feedback Blocked . | . . . . . . . . Robot Schematics Acquired . | . . . . . . . . Robots Built . | . . . . . . . . Authchips . | . . . . . . . . Time . | . . . . . . . . Total Robot Build Rating . | . . . . . . . . Part Schematics Acquired . | . . . . . . . . Parts Built . | . . . . . . . . Authchips . | . . . . . . . . Time . | . . . . . . . . Total Part Build Rating . | . . . . . . . . Parts Repaired . | . . . . . . . . Time . | . . . . . . . . Parts Recycled . | . . . . . . . . Recycled Matter . | . . . . . . . . Retrieved Matter . | . . . . . . . . Retrieved Components . | . . . . . . . . Parts Scanalyzed . | . . . . . . . . Part Schematics Acquired . | . . . . . . . . Parts Damaged . | . . . . . . . . Bothacking | -11 -10 -10 -9 -8 -7 -7 -6 ------------ Run | Yrd Mat Min Mat Mat Fac DSF Fac Used RIF Installer . | . . . . . . . . Robots Hacked . | . . . . . . . . Non-combat . | . . . . . . . . Combat . | . . . . . . . . Robot Hacks Applied . | . . . . . . . . Relay Couplers Released . | . . . . . . . . Fabnet Peak Effective % . | . . . . . . . . Robots Rewired . | . . . . . . . . Allies Hacked . | . . . . . . . . Hacks Repelled . | . . . . . . . . Allies | -11 -10 -10 -9 -8 -7 -7 -6 -------- Run | Yrd Mat Min Mat Mat Fac DSF Fac Total Allies . | . . . . . . . . Largest Group . | . . . . . . . . Highest-Rated Group . | . . . . . . . . Highest-Rated Ally . | . . . . . . . . Total Orders . | . . . . . . . . Ally Attacks . | . . . . . . . . Total Damage . | . . . . . . . . Kills . | . . . . . . . . Allies Corrupted . | . . . . . . . . Allies Melted . | . . . . . . . . Intel | -11 -10 -10 -9 -8 -7 -7 -6 ------- Run | Yrd Mat Min Mat Mat Fac DSF Fac Robot Analysis Total . | . . . . . . . . Derelict Logs Recovered . | . . . . . . . . Drone Launches . | . . . . . . . . Drone Recoveries . | . . . . . . . . Exploration | -11 -10 -10 -9 -8 -7 -7 -6 ------------- Run | Yrd Mat Min Mat Mat Fac DSF Fac Turns Passed 2643 | 314 156 50 752 565 109 213 484 Spaces Moved 1353 | 163 82 15 328 352 90 133 190 Core 213 | 8 . . . 1 . 14 190 Treads 749 | 155 82 15 328 169 . . . Legs . | . . . . . . . . Wheels 391 | . . . . 182 90 119 . Hover . | . . . . . . . . Flight . | . . . . . . . . Fastest Speed 50 | 50 160 160 160 100 115 100 50 Average Speed 153 | 154 160 160 160 129 115 114 228 Slowest Speed 500 | 160 160 160 160 450 115 200 500 Overloaded Moves . | . . . . . . . . Propulsion Burnouts . | . . . . . . . . Robots Hopped . | . . . . . . . . Cave-ins Triggered . | . . . . . . . . Exploration Rate (%) 23 | 7 26 8 29 28 4 81 4 Regions Visited 7 Branch Regions 1 Pre-discovered Areas . | . . . . . . . . Known Exits Taken 2 | . . . 1 . 1 . . Unknown Exits Taken 4 | 1 1 1 . 1 . . . Scrap Searched . | . . . . . . . . Spaces Dug . | . . . . . . . . Terrain Destroyed 52 | . . . . 30 . 22 . Melee . | . . . . . . . . Projectile . | . . . . . . . . AOE 51 | . . . . 30 . 21 . Terrain Rammed . | . . . . . . . . Walls Destroyed . | . . . . . . . . Machines Disabled . | . . . . . . . . Actions | -11 -10 -10 -9 -8 -7 -7 -6 --------- Run | Yrd Mat Min Mat Mat Fac DSF Fac Total 1645 | 198 92 23 431 422 96 170 213 Wait 1 | . . . 1 . . . . Move 1346 | 162 81 14 327 351 89 132 190 Hop . | . . . . . . . . Pick Up 47 | 13 3 . 11 12 2 4 2 Fast Attach 4 | . . . . 3 . 1 . Attach 29 | 8 . . 3 5 4 . 9 Detach . | . . . . . . . . Swap 24 | . 1 . 11 8 . 4 . Drop 34 | 1 . . 12 19 1 1 . Fire 124 | 14 7 9 64 19 . 9 2 Melee . | . . . . . . . . Ram 19 | . . . . 4 . 5 10 Kick . | . . . . . . . . Crush 3 | . . . 2 1 . . . Escape Stasis 14 | . . . . . . 14 . Rewire . | . . . . . . . . Trap . | . . . . . . . . Miscellaneous . | . . . . . . . . Route ------- -11/Scrapyard -10/Materials -10/Mines -9/Materials (discovered 3 exits: *Mat x3) -8/Materials -7/Factory -7/DSF -6/Factory History --------- Turn | Location | Event 17 | -11/Scrapyard | Discovered new exit (range 15) 315 | -11/Scrapyard | Entered Materials 316 | -10/Materials | Build established: Mutant 435 | -10/Materials | Discovered new exit (range 13) 471 | -10/Materials | Entered Mines 498 | -10/Mines | Discovered new exit (range 9) 515 | -10/Mines | Assembled infested the area 521 | -10/Mines | Entered Materials 521 | -9/Materials | Evolved 2 slots: Propulsion x2 952 | -9/Materials | Identified exit to Materials 987 | -9/Materials | Build established: Scavenger-Mutant 1273 | -9/Materials | Entered another Materials area 1273 | -8/Materials | Evolved 2 slots: Utility x1, Weapon x1 1560 | -8/Materials | Build established: Scavenger-Skirmisher 1791 | -8/Materials | Garrison activated, responded to threat 1829 | -8/Materials | Discovered new exit (range 7) 1838 | -8/Materials | Entered Factory 1838 | -7/Factory | Evolved 2 slots: Power x1, Utility x1 1945 | -7/Factory | Identified exit to DSF 1947 | -7/Factory | Entered DSF 1984 | -7/DSF | Additional patrols routed to DSF 2142 | -7/DSF | Discovered new exit (range 16) 2159 | -7/DSF | Identified exit to Factory 2160 | -7/DSF | Entered Factory 2160 | -6/Factory | Evolved 2 slots: Utility x2 2180 | -6/Factory | Lost 5 parts (2p1n1u1w) 2470 | -6/Factory | Build established: Gunner 2577 | -6/Factory | Core integrity fell below 50% 2610 | -6/Factory | Lost 6 parts (1p2u3w) 2644 | -6/Factory | Self-destructed Last Messages --------------- 02571_ Slammed into H-66 Slayer. 02573_ Penetrated by Slug. 02573_ Slug penetrates Wall. 02574_ Penetrated by Slug. 02574_ Slammed into W-25 Informer. 02574_ Destabilizing: System interference. 02574_ Imp. Signal Interpreter temporarily disabled. 02576_ Slug penetrates Door. 02578_ K-01 Serf cleans the Nuclear Reactor. 02579_ Slug penetrates Wall. 02579_ Nuclear Core destroyed. 02581_ Penetrated by Slug. 02582_ Slug penetrates Wall. 02582_ U-05 Engineer builds a Door. 02592_ Slammed into K-01 Serf. 02595_ ALERT: Cargo convoy en route, clear transfer corridor. 02610_ Slammed into K-01 Serf. 02636_ Acquired Adv. Sensor Array. Map ----- +----------------------------------------------------+ | ?????????????????????????????????????????????????# | | ?????????????????????????????????????????????????# | | ?????????????????????????????????????????????????# | | ?????????????????????????????????????????# ##### | | ??????????????????????????????????? | | ?????????????????????????????????????????# ##### | | ????????????????????????????????????????????????## | | ????????????????????????????????????????????????# | | ????????????????????????????????????????????????#T | | ????????????????????????????????????????????????## | | ?????????????????????????????????????????????????# | | ?????????????????????????????????????????????????# | | ???????????""????????#+#?????????????????????????# | | ???????????"""???????# #?????????????????????????# | | ???????????? ??????# #???????????#####?????????# | | ????????????""" ?????# #???????????# ??????????# | | ????????????""" ##### ############# #???????????# | | ?????? """" #???????????# | | ?????? #???????????# | | ?????? #???????????# | | ?????????????########+#########+#+##+#???????????# | | ???????????????# # ############# | | ???????????????# # """"" + | | ???????????????# """ # """"" # ########## | | ???????????????# """"" # """ # #????????? | | ???????????????# """""@ # # #????????? | | ???????????????# # """"" # #????????? | | ???????????????# # """"" # #????????? | | ???????????????# # """ # #????????? | | ???????????????# # ]# #????????? | | ???????????????# ""T"" ########## #????????? | | ???????????????# """"" #????????# #????????? | | ???????????????# #????????# #????????? | | ???????????????##############????????# #????????? | | ????????????????????????????????????? #????????? | | ????????????????????????????????????? ?????????? | | ????????????????????????????????????? ?????????? | | ????????????????????????????????????? ?????????? | | ?????????????????????????????????????????????????? | | ?????????????????????????????????????????????????? | | ?????????????????????????????????????????????????? | | ?????????????????????????????????????????????????? | | ?????????????????????????????????????????????????? | | ?????????????????????????????????????????????????? | | ?????????????????????????????????????????????????? | | ?????????????????????????????????????????????????? | | ?????????????????????????????????????????????????? | | ?????????????????????????????????????????????????? | | ?????????????????????????????????????????????????? | | ?????????????????????????????????????????????????? | +----------------------------------------------------+ Best States ------------- Heat Dissipation 37 Energy Generation 23 Energy Capacity 380 Matter Stores 300 Matter Capacity 300 Sight Range 16 Robot Scan Range 16 Terrain Scan Range 16 Terrain Scan Density 110 Armor Coverage 225 Weapon Cycling 15 Evasion (%) 50 Recoil Reduction 4 Particle Charging 15 Kinecelleration 30 Defensive Hacking 10 Item Schematics ----------------- None Robot Schematics ------------------ None Fabricated ------------ Nothing Alien Tech Used ----------------- None Achievements -------------- Omniscient Cartographer Challenges ------------ None Game ------ Seed OmegaPlasmaBuckler Manual? 0 Play Time 00:26:27 Cumulative 18.6 hours Start 2024.11.08 @ 09:05:34 End 2024.11.08 @ 09:30:45 Sessions 1 Manual Loads 0 Difficulty Rogue Special Mode None Game No. 44 Rogue 44 Adventurer 0 Explorer 0 Win Type - Total 0 Types 0/0/0/0/0/0/0/0/0 Lore% 9 Gallery% 17 Achievement% 17 Wizard Run 0 Options --------- Layout 1 ASCII 0 Keyboard 0 Movement Arrows Keybinds 0 Fullscreen 1 Font 24/Smallcaps Map View 50x40 Zoom Use 3% Tactical HUD 1 Map Filters NONE Filters NONE Steam 1 RUN: d1cf284b-075c-4116-9880-bed127e8da3a